bitfinex/quotes_BTCUSD_20220213
["timestamp","ask_amount","ask_price","bid_price","bid_amount"]
[1644773557321,0.07132086,42304.0,42303.0,0.03857531]
[1644773557522,0.07132086,42304.0,42303.0,0.28343456]
[1644773558322,0.07132086,42304.0,42303.0,0.57797156]
[1644773558523,0.006601,42304.0,42303.0,0.57797156]
[1644773558839,0.006601,42304.0,42303.0,0.87591343]
[1644773560127,0.006601,42304.0,42303.0,0.57797156]
[1644773560376,0.001601,42304.0,42303.0,0.33311231]
[1644773560575,0.001601,42304.0,42303.0,0.333006]
[1644773560778,0.006601,42304.0,42303.0,0.333006]
[1644773563278,0.006601,42304.0,42303.0,0.5955686]
[1644773563478,0.006601,42304.0,42303.0,0.333006]
[1644773563879,0.006601,42304.0,42303.0,0.59724785]
[1644773564528,0.006601,42304.0,42303.0,0.333006]
[1644773566326,0.006601,42304.0,42303.0,0.33481179]
[1644773570675,0.006601,42304.0,42303.0,0.33491827]
[1644773570877,0.006601,42304.0,42303.0,0.33404711]
[1644773574440,0.00509204,42304.0,42303.0,0.33404711]
[1644773574644,0.1287738,42309.0,42305.0,0.333006]
[1644773574645,0.00039586,42306.0,42305.0,0.333006]
[1644773575676,0.00024364,42309.0,42305.0,0.333006]
[1644773575878,0.00039585,42308.0,42305.0,0.333006]
[1644773576778,0.00024364,42309.0,42305.0,0.333006]
[1644773576978,0.00024364,42309.0,42303.0,0.00182647]
[1644773577187,0.000625,42309.0,42303.0,0.00182647]
[1644773577979,0.08107687,42309.0,42303.0,0.00182647]
[1644773578179,0.13129087,42309.0,42303.0,0.00182647]
[1644773578381,0.00038136,42308.0,42303.0,0.00182647]
[1644773578579,0.00038136,42308.0,42305.0,0.333006]
[1644773578779,0.00038136,42308.0,42303.0,0.26348865]
[1644773579030,0.00062702,42308.0,42303.0,0.00182647]
[1644773579228,0.00024566,42308.0,42303.0,0.00182647]
[1644773579428,0.00038137,42308.0,42305.0,0.038457]
[1644773579627,0.00062703,42308.0,42303.0,0.00182647]
[1644773579830,0.00062703,42308.0,42305.0,0.333006]
[1644773580027,0.00062703,42308.0,42304.0,0.059112]
[1644773580228,0.26667571,42306.0,42303.0,0.00182647]
[1644773580429,0.26667571,42306.0,42303.0,0.00171999]
[1644773580627,0.26667571,42306.0,42305.0,0.333006]
[1644773581027,0.26667571,42306.0,42303.0,0.00171999]
[1644773581227,0.00024566,42307.0,42305.0,0.00198963]
[1644773581427,0.00070743,42308.0,42305.0,0.00198963]
[1644773581629,0.00024566,42307.0,42305.0,0.00198963]
[1644773581829,0.00035003,42308.0,42305.0,0.00198963]
[1644773582028,0.00010437,42308.0,42305.0,0.00198963]
[1644773582228,0.00035003,42308.0,42305.0,0.00198963]
[1644773582431,0.00010437,42308.0,42305.0,0.00198963]
[1644773582630,0.22059841,42307.0,42305.0,0.00198963]
[1644773583084,0.27996107,42307.0,42305.0,0.00198963]
[1644773583982,0.33883441,42307.0,42305.0,0.00198963]
[1644773584183,0.40321183,42307.0,42305.0,0.00198963]
[1644773584885,0.17926908,42306.0,42305.0,0.00198963]
[1644773585483,0.51227508,42306.0,42305.0,8.963e-05]
[1644773585687,0.17936178,42306.0,42305.0,8.963e-05]
[1644773585883,0.27936178,42306.0,42305.0,8.963e-05]
[1644773586385,0.27936178,42306.0,42302.0,0.13052961]
[1644773586386,0.059121,42305.0,42302.0,0.13052961]
[1644773586632,0.24313589,42303.0,42302.0,0.13052961]
[1644773587033,0.29313589,42303.0,42302.0,0.13052961]
[1644773587232,0.62614189,42303.0,42302.0,0.13052961]
[1644773587634,0.28813589,42303.0,42302.0,0.13052961]
[1644773587834,0.24313589,42303.0,42302.0,0.13052961]
[1644773590281,0.57614189,42303.0,42302.0,0.13052961]
[1644773590477,0.57614189,42303.0,42302.0,0.13059273]
[1644773590478,0.57623409,42303.0,42302.0,0.13059273]
[1644773590679,0.24322809,42303.0,42302.0,0.13059273]
[1644773592481,0.23822809,42303.0,42302.0,0.13059273]
[1644773594241,0.79036379,42303.0,42302.0,0.13059273]
[1644773594440,0.79036379,42303.0,42296.0,0.00035961]
[1644773594441,1.392146,42302.0,42296.0,0.00035961]
[1644773594738,0.81922077,42301.0,42296.0,0.00035961]
[1644773594937,1.01242628,42301.0,42290.0,0.05]
[1644773595138,1.01242628,42301.0,42296.0,0.00035959]
[1644773595139,0.2476578,42300.0,42296.0,0.00035959]
[1644773595341,0.118278,42298.0,42296.0,0.00035959]
[1644773595536,0.333006,42297.0,42296.0,0.00035959]
[1644773595738,0.392144,42297.0,42296.0,0.00035959]
[1644773595937,0.492144,42297.0,42296.0,0.00035959]
[1644773596136,0.492144,42297.0,42285.0,0.5708]
[1644773596339,0.22846762,42286.0,42284.0,0.26336633]
[1644773596540,0.57608028,42292.0,42291.0,0.05065362]
[1644773596739,0.45780028,42292.0,42291.0,0.05065362]
[1644773597340,0.51694028,42292.0,42291.0,0.05065362]
[1644773597788,0.58381691,42292.0,42291.0,0.05065362]
[1644773598887,0.91682291,42292.0,42291.0,0.05065362]
[1644773599189,0.58381691,42292.0,42291.0,0.05065362]
[1644773599389,0.73381691,42292.0,42291.0,0.05065362]
[1644773600189,1.06682291,42292.0,42291.0,0.05065362]
[1644773600992,1.06691876,42292.0,42291.0,0.05065362]
[1644773601193,1.07138769,42292.0,42291.0,0.05065362]
[1644773601641,0.78568169,42292.0,42291.0,0.05065362]
[1644773601841,1.11868769,42292.0,42291.0,0.05065362]
[1644773603144,0.78568169,42292.0,42291.0,0.05065362]
[1644773603343,1.11868769,42292.0,42291.0,0.05065362]
[1644773603543,0.78568169,42292.0,42291.0,0.05065362]
[1644773603745,1.11868769,42292.0,42291.0,0.05065362]
[1644773604746,1.42877479,42292.0,42291.0,0.05065362]
[1644773605977,1.09576879,42292.0,42291.0,0.05065362]
[1644773606284,1.42877479,42292.0,42291.0,0.05065362]
[1644773606477,1.11868769,42292.0,42291.0,0.05065362]
[1644773609429,0.91587381,42292.0,42291.0,0.05065362]
[1644773609837,0.58286781,42292.0,42291.0,0.05065362]
[1644773610832,0.91587381,42292.0,42291.0,0.05065362]
[1644773611631,0.58286781,42292.0,42291.0,0.05065362]
[1644773612332,0.91587381,42292.0,42291.0,0.05065362]
[1644773614378,0.58286781,42292.0,42291.0,0.05065362]
[1644773614578,0.91587381,42292.0,42291.0,0.05065362]
[1644773614777,0.58286781,42292.0,42291.0,0.05065362]
[1644773614979,0.91587381,42292.0,42291.0,0.05145362]
[1644773615177,0.58286781,42292.0,42291.0,0.05145362]
[1644773615379,0.91587381,42292.0,42291.0,0.05145362]
[1644773615779,0.58286781,42292.0,42291.0,0.05145362]
[1644773615978,0.91587381,42292.0,42291.0,0.05145362]
[1644773616281,1.24489771,42292.0,42291.0,0.05145362]
[1644773616731,0.89921494,42292.0,42291.0,0.05145362]
[1644773616932,0.91587381,42292.0,42291.0,0.05145362]
[1644773617231,0.58286781,42292.0,42291.0,0.05145362]
[1644773617932,0.5643329,42292.0,42291.0,0.05145362]
[1644773618132,0.8973389,42292.0,42291.0,0.05145362]
[1644773620385,0.8973389,42292.0,42291.0,0.04645362]
[1644773622689,0.19516987,42292.0,42291.0,0.04645362]
[1644773622891,0.00456478,42292.0,42291.0,0.04645362]
[1644773624136,0.07374618,42292.0,42291.0,0.04645362]
[1644773628782,0.13288018,42292.0,42291.0,0.04645362]
[1644773629584,0.07374618,42292.0,42291.0,0.04645362]
[1644773630185,0.00456478,42292.0,42291.0,0.04645362]
[1644773630583,0.2611412,42300.0,42292.0,0.00912955]
[1644773630784,0.392132,42299.0,42292.0,0.00912955]
[1644773631083,0.059126,42299.0,42292.0,0.00912955]
[1644773631283,0.05913,42296.0,42294.0,0.00033376]
[1644773631537,0.333006,42295.0,42294.0,0.00033376]
[1644773632130,0.113262,42296.0,42294.0,0.00033376]
[1644773632331,0.113262,42296.0,42292.0,0.00912955]
[1644773632531,0.113262,42296.0,42292.0,0.00946332]
[1644773632931,0.113262,42296.0,42291.0,0.30464826]
[1644773633130,0.054132,42296.0,42291.0,0.30464826]
[1644773633931,0.054132,42296.0,42291.0,0.04042994]
[1644773634734,0.118265,42295.0,42291.0,0.30170711]
[1644773634933,0.059133,42295.0,42291.0,0.30170711]
[1644773635581,0.059132,42294.0,42291.0,0.04042994]
[1644773635782,0.118263,42294.0,42291.0,0.04042994]
[1644773636781,0.05923492,42295.0,42291.0,0.04042994]
[1644773637584,0.11836692,42295.0,42291.0,0.04042994]
[1644773637984,0.059133,42294.0,42291.0,0.04042994]
[1644773640636,0.05924655,42294.0,42291.0,0.04042994]
[1644773641035,0.05924655,42294.0,42293.0,0.00099662]
[1644773641836,0.39225255,42294.0,42293.0,0.00099662]
[1644773642035,0.05924655,42294.0,42293.0,0.00099662]
[1644773642236,0.39225255,42294.0,42293.0,0.00099662]
[1644773642441,0.45138455,42294.0,42293.0,0.00099662]
[1644773643284,0.50138455,42294.0,42293.0,0.00099662]
[1644773645090,0.65138455,42294.0,42293.0,0.00099662]
[1644773645487,0.79878447,42294.0,42293.0,0.00099662]
[1644773645987,0.79875203,42294.0,42293.0,0.00099662]
[1644773646387,0.79875203,42294.0,42292.0,0.00192961]
[1644773646630,0.333006,42293.0,42292.0,0.00192961]
[1644773646832,0.433006,42293.0,42292.0,0.00192961]
[1644773647231,0.58040592,42293.0,42292.0,0.00192961]
[1644773647430,0.433006,42293.0,42292.0,0.00192961]
[1644773648930,0.58040592,42293.0,42292.0,0.00192961]
[1644773649931,0.99215,42292.0,42291.0,0.03735955]
[1644773650135,0.44215,42292.0,42291.0,0.03735955]
[1644773650382,0.44215,42292.0,42283.0,0.00014884]
[1644773650383,1.0,42291.0,42283.0,0.00014884]
[1644773650585,1.0,42291.0,42289.0,0.00035912]
[1644773650586,0.380306,42290.0,42289.0,0.00035912]
[1644773650884,1.05538076,42290.0,42289.0,0.00035912]
[1644773651084,1.29300531,42290.0,42289.0,0.00035912]
[1644773651382,1.41130631,42290.0,42289.0,0.00035912]
[1644773651582,0.059152,42286.0,42276.0,0.26194751]
[1644773651881,0.21447049,42277.0,42276.0,0.00015188]
[1644773652081,0.08529055,42282.0,42276.0,0.00015188]
[1644773652283,0.14444055,42282.0,42275.0,0.30124523]
[1644773652686,0.14444055,42282.0,42275.0,0.30109335]
[1644773652883,0.14444055,42282.0,42276.0,0.0003592]
[1644773653083,0.21501342,42279.0,42276.0,0.00051108]
[1644773653283,0.21501342,42279.0,42277.0,0.333006]
[1644773653483,0.21501342,42279.0,42277.0,0.33315788]
[1644773653884,0.08529055,42282.0,42277.0,0.00015188]
[1644773654141,0.08529055,42282.0,42277.0,0.333006]
[1644773654338,0.08529055,42282.0,42277.0,0.00015188]
[1644773654538,0.08529055,42282.0,42276.0,0.00051108]
[1644773654937,0.27454989,42282.0,42276.0,0.00051108]
[1644773655139,0.059149,42281.0,42277.0,0.333006]
[1644773655340,0.059149,42281.0,42277.0,0.00051108]
[1644773655545,0.059149,42281.0,42277.0,0.0003592]
[1644773656241,0.059149,42281.0,42277.0,0.333006]
[1644773656439,0.059149,42281.0,42277.0,0.00015188]
[1644773656641,0.12047987,42281.0,42277.0,0.00033093]
[1644773656848,0.12047987,42281.0,42277.0,0.00048281]
[1644773657039,0.06132887,42281.0,42277.0,0.00033093]
[1644773657540,0.06132887,42281.0,42276.0,0.00015188]
[1644773657779,0.06132887,42281.0,42277.0,0.33333693]
[1644773657986,0.06132887,42281.0,42277.0,0.00033093]
[1644773658181,0.06132887,42281.0,42277.0,0.00048281]
[1644773658382,0.12047887,42281.0,42277.0,0.00033093]
[1644773658782,0.12047887,42281.0,42277.0,0.333006]
[1644773658984,0.12047887,42281.0,42277.0,0.33333693]
[1644773659183,0.12047887,42281.0,42277.0,0.33348881]
[1644773659384,0.12047887,42281.0,42277.0,0.33333693]
[1644773659585,0.06132887,42281.0,42277.0,0.33348881]
[1644773659787,0.06132887,42281.0,42277.0,0.00048281]
[1644773659986,0.06132887,42281.0,42278.0,0.333006]
[1644773660187,0.06132887,42281.0,42277.0,0.00033188]
[1644773660388,8.488e-05,42280.0,42277.0,0.00048376]
[1644773660592,0.02694398,42283.0,42277.0,0.00048376]
[1644773660987,0.00181048,42280.0,42277.0,0.00048376]
[1644773661189,0.059153,42279.0,42277.0,0.00015188]
[1644773661388,0.059153,42279.0,42278.0,0.000336]
[1644773662231,0.059153,42279.0,42276.0,0.26177121]
[1644773662435,0.059153,42279.0,42275.0,0.04015188]
[1644773662436,0.333006,42278.0,42275.0,0.04015188]
[1644773662639,0.333006,42278.0,42276.0,0.00033601]
[1644773662640,0.633006,42278.0,42276.0,0.00033601]
[1644773662835,0.939467,42278.0,42276.0,0.00033601]
[1644773663140,0.333006,42277.0,42276.0,0.00048789]
[1644773663333,0.71694215,42277.0,42276.0,0.00048789]
[1644773663532,0.71694215,42277.0,42276.0,0.00015188]
[1644773663734,0.77611215,42277.0,42275.0,0.04]
[1644773663936,0.24124254,42276.0,42275.0,0.04]
[1644773664133,0.62424854,42276.0,42275.0,0.04]
[1644773664333,0.77424854,42276.0,42275.0,0.04]
[1644773664935,0.44124254,42276.0,42275.0,0.04]
[1644773665134,0.77424854,42276.0,42275.0,0.04]
[1644773666486,0.44124254,42276.0,42275.0,0.04]
[1644773667088,0.82154854,42276.0,42275.0,0.04]
[1644773667389,0.48854254,42276.0,42275.0,0.04]
[1644773667588,0.82154854,42276.0,42275.0,0.04]
[1644773668587,0.48854254,42276.0,42275.0,0.04]
[1644773669042,0.2473,42276.0,42275.0,0.04]
[1644773669435,0.0473,42276.0,42275.0,0.04]
[1644773669637,0.118331,42277.0,42275.0,0.04]
[1644773669838,0.00155632,42279.0,42276.0,0.038746]
[1644773670038,0.00155632,42279.0,42275.0,0.25870864]
[1644773670235,0.00155632,42279.0,42276.0,0.333006]
[1644773670436,0.00155632,42279.0,42275.0,0.25855676]
[1644773670736,9.726e-05,42276.0,42275.0,0.29730376]
[1644773670938,9.726e-05,42276.0,42275.0,0.29768895]
[1644773671136,9.726e-05,42276.0,42275.0,0.2971081]
[1644773671335,0.00154505,42276.0,42275.0,0.25933485]
[1644773671738,0.00154505,42276.0,42275.0,0.25948673]
[1644773671937,0.00154505,42276.0,42275.0,0.25910154]
[1644773673186,0.00154505,42276.0,42275.0,0.52590164]
[1644773673987,0.00154505,42276.0,42275.0,0.85889964]
[1644773674187,0.00154505,42276.0,42275.0,0.52590164]
[1644773674794,0.3742,42290.0,42276.0,1.0030901]
[1644773674993,0.3742,42290.0,42280.0,0.059131]
[1644773675189,0.3742,42290.0,42283.0,0.05913]
[1644773675389,0.3742,42290.0,42287.0,0.26705338]
[1644773675390,0.07092682,42288.0,42287.0,0.26705338]
[1644773675590,0.07092682,42288.0,42287.0,0.30580338]
[1644773675789,0.07092682,42288.0,42287.0,0.03875]
[1644773675993,0.13006782,42288.0,42284.0,0.00036797]
[1644773676554,0.059142,42287.0,42284.0,0.00036797]
[1644773676744,0.059142,42287.0,42278.0,0.00015188]
[1644773676946,0.059142,42287.0,42284.0,0.00036797]
[1644773677145,0.059142,42287.0,42285.0,0.332957]
[1644773677346,0.07092682,42288.0,42284.0,0.00036797]
[1644773677646,0.13006482,42288.0,42284.0,0.00036797]
[1644773677844,0.07092682,42288.0,42284.0,0.00036797]
[1644773678046,0.07092682,42288.0,42282.0,0.03883188]
[1644773678245,0.07092682,42288.0,42284.0,0.00036797]
[1644773678446,0.07092682,42288.0,42285.0,0.332981]
[1644773678646,0.07092682,42288.0,42284.0,0.00036797]
[1644773679246,0.07092682,42288.0,42283.0,0.03868]
[1644773679547,0.07092682,42288.0,42284.0,0.00036754]
[1644773679847,0.059137,42291.0,42287.0,0.23514938]
[1644773680689,0.059137,42291.0,42287.0,0.2355169]
[1644773680889,0.00156833,42288.0,42287.0,0.2355169]
[1644773681091,0.08746188,42288.0,42287.0,0.5685229]
[1644773681695,0.08746188,42288.0,42287.0,0.27378238]
[1644773681892,0.08746188,42288.0,42287.0,0.56815538]
[1644773682095,0.08746188,42288.0,42287.0,0.333006]
[1644773682697,0.04746188,42288.0,42287.0,0.333006]
[1644773683098,0.04746188,42288.0,42287.0,0.038633]
[1644773683498,0.118275,42291.0,42287.0,0.038633]
[1644773683700,0.369,42294.0,42287.0,0.32981311]
[1644773683900,0.369,42294.0,42289.0,0.333006]
[1644773684150,0.1168,42295.0,42287.0,0.31798811]
[1644773684345,0.1168,42295.0,42288.0,0.333006]
[1644773684542,0.1168,42295.0,42294.0,0.20436917]
[1644773684742,0.06396581,42297.0,42294.0,0.20436917]
[1644773685341,0.12309481,42297.0,42294.0,0.20436917]
[1644773686646,0.12309481,42297.0,42290.0,0.00038581]
[1644773686845,0.059132,42295.0,42290.0,0.00038581]
[1644773687047,0.12309481,42297.0,42291.0,0.333006]
[1644773687048,0.05,42297.0,42291.0,0.333006]
[1644773687246,0.05038573,42298.0,42293.0,0.038588]
[1644773687447,0.05038573,42298.0,42291.0,0.333006]
[1644773687448,0.00038573,42298.0,42291.0,0.333006]
[1644773687649,0.4961,42300.0,42294.0,0.23356011]
[1644773687889,0.00038573,42298.0,42294.0,0.23356011]
[1644773688087,0.059131,42297.0,42290.0,0.00038581]
[1644773688886,0.059131,42297.0,42287.0,0.04837513]
[1644773689087,0.08240056,42291.0,42290.0,0.0003858]
[1644773689290,0.08240056,42291.0,42290.0,0.3333918]
[1644773690088,0.08240056,42291.0,42290.0,0.333006]
[1644773690289,0.08240056,42291.0,42289.0,0.038603]
[1644773690690,0.07016307,42294.0,42293.0,0.28307112]
[1644773690888,0.07016307,42294.0,42293.0,0.28414035]
[1644773692236,0.06516307,42294.0,42293.0,0.28414035]
[1644773692436,0.12429707,42294.0,42293.0,0.28414035]
[1644773692839,0.55730307,42294.0,42293.0,0.28414035]
[1644773693238,0.65730307,42294.0,42293.0,0.28414035]
[1644773693438,0.32429707,42294.0,42293.0,0.28414035]
[1644773693640,0.93245813,42294.0,42293.0,0.28414035]
[1644773694240,1.08088935,42294.0,42293.0,0.28414035]
[1644773695894,1.18078935,42294.0,42293.0,0.28414035]
[1644773696094,0.84787498,42294.0,42293.0,0.28414035]
[1644773696298,0.54797498,42294.0,42293.0,0.28414035]
[1644773696597,0.39954376,42294.0,42293.0,0.28414035]
[1644773696797,0.73254976,42294.0,42293.0,0.28414035]
[1644773696994,0.39954376,42294.0,42293.0,0.28414035]
[1644773697197,0.73254976,42294.0,42293.0,0.28414035]
[1644773697394,0.39954376,42294.0,42293.0,0.28414035]
[1644773697595,0.93254976,42294.0,42293.0,0.28414035]
[1644773697796,1.03244976,42294.0,42293.0,0.28414035]
[1644773697995,0.4242887,42294.0,42293.0,0.28414035]
[1644773698196,0.7572947,42294.0,42293.0,0.28414035]
[1644773698397,0.4242887,42294.0,42293.0,0.28414035]
[1644773698597,0.7572947,42294.0,42293.0,0.28414035]
[1644773698898,0.4242887,42294.0,42293.0,0.28414035]
[1644773699145,0.7572947,42294.0,42293.0,0.28414035]
[1644773699342,0.4242887,42294.0,42293.0,0.28414035]
[1644773699544,0.7572947,42294.0,42293.0,0.28414035]
[1644773699748,0.4242887,42294.0,42293.0,0.28414035]
[1644773700342,0.3243887,42294.0,42293.0,0.28414035]
[1644773700743,0.2243887,42294.0,42293.0,0.28414035]
[1644773700942,0.3243887,42294.0,42293.0,0.28414035]
[1644773701343,0.6573947,42294.0,42293.0,0.28414035]
[1644773701743,0.3243887,42294.0,42293.0,0.28414035]
[1644773702147,0.2243887,42294.0,42293.0,0.28414035]
[1644773702349,0.3243887,42294.0,42293.0,0.28414035]
[1644773702997,0.3243887,42294.0,42293.0,0.52414035]
[1644773703197,0.0652547,42294.0,42293.0,0.52414035]
[1644773711190,0.0652547,42294.0,42292.0,0.0009978]
[1644773711392,0.0652547,42294.0,42284.0,0.00015188]
[1644773711393,0.392143,42291.0,42284.0,0.00015188]
[1644773711592,0.392143,42291.0,42283.0,0.00015188]
[1644773711593,0.739443,42291.0,42283.0,0.00015188]
[1644773711795,0.539443,42291.0,42281.0,0.00015188]
[1644773711991,1.10550773,42291.0,42280.0,0.00015188]
[1644773712193,0.21216313,42281.0,42276.0,0.01324198]
[1644773712495,0.13431094,42280.0,42276.0,0.01324198]
[1644773713093,0.19346394,42280.0,42276.0,0.01346665]
[1644773714141,0.19346394,42280.0,42276.0,0.01324198]
[1644773714343,0.19346394,42280.0,42276.0,0.01346665]
[1644773714543,0.177469,42279.0,42276.0,0.01346665]
[1644773714741,0.059153,42278.0,42276.0,0.01346665]
[1644773715142,0.333006,42277.0,42276.0,0.01346665]
[1644773715346,0.333006,42277.0,42276.0,0.01324198]
[1644773715347,0.71112471,42277.0,42276.0,0.01324198]
[1644773715543,0.15,42277.0,42276.0,0.01324198]
[1644773715741,0.2,42277.0,42276.0,0.01324198]
[1644773716344,0.2,42277.0,42276.0,0.25324198]
[1644773716643,0.118306,42278.0,42276.0,0.25324198]
[1644773717449,0.333006,42277.0,42276.0,0.25324198]
[1644773717899,0.433006,42277.0,42276.0,0.25324198]
[1644773718294,0.433006,42277.0,42276.0,0.24824198]
[1644773719294,1.0,42276.0,42275.0,0.03941915]
[1644773719599,1.451356,42275.0,42266.0,0.0591]
[1644773719798,1.451356,42275.0,42267.0,0.00015259]
[1644773719799,0.451363,42273.0,42267.0,0.00015259]
[1644773719997,0.0473,42272.0,42266.0,0.0591]
[1644773720196,0.40492947,42271.0,42264.0,0.00015259]
[1644773720400,0.40492947,42271.0,42263.0,0.00015259]
[1644773720401,0.22074216,42265.0,42263.0,0.00015259]
[1644773720697,0.21449701,42264.0,42261.0,0.01]
[1644773720898,0.06991686,42264.0,42261.0,0.01]
[1644773721550,0.118341,42268.0,42261.0,0.01]
[1644773721942,0.168341,42268.0,42261.0,0.01]
[1644773722143,0.168341,42268.0,42261.0,0.01015259]
[1644773722144,0.10917,42268.0,42261.0,0.01015259]
[1644773722543,0.10917,42268.0,42263.0,0.06741724]
[1644773722544,0.07868143,42268.0,42263.0,0.06741724]
[1644773722745,0.118339,42274.0,42265.0,0.333053]
[1644773722947,0.059164,42275.0,42264.0,0.27276326]
[1644773723143,0.118331,42276.0,42264.0,0.00015259]
[1644773723342,0.118331,42276.0,42263.0,0.06741724]
[1644773723542,0.37174724,42276.0,42264.0,0.26378737]
[1644773723745,0.25125388,42273.0,42264.0,0.26253835]
[1644773723944,0.08048631,42268.0,42267.0,0.00036628]
[1644773724147,0.059165,42271.0,42267.0,0.00036628]
[1644773724845,0.059165,42271.0,42264.0,0.00015259]
[1644773725045,0.059165,42271.0,42267.0,0.00038255]
[1644773725297,0.05917,42270.0,42267.0,0.00038255]
[1644773725500,0.06395145,42268.0,42267.0,0.00038255]
[1644773725996,0.06395145,42268.0,42262.0,0.00015259]
[1644773726196,0.06395145,42268.0,42263.0,0.333053]
[1644773726399,0.12312245,42268.0,42265.0,0.00038256]
[1644773726795,0.12312245,42268.0,42265.0,0.00053515]
[1644773726996,0.06395145,42268.0,42266.0,0.333053]
[1644773727196,0.059171,42271.0,42266.0,0.00015259]
[1644773727497,0.059169,42270.0,42265.0,0.00053515]
[1644773727697,0.059169,42270.0,42265.0,0.00038256]
[1644773727897,0.059169,42270.0,42265.0,0.00053515]
[1644773728301,0.05917,42269.0,42265.0,0.00053515]
[1644773728501,0.05917,42269.0,42265.0,0.00015259]
[1644773728700,0.05917,42269.0,42265.0,0.00036249]
[1644773728900,0.13234623,42269.0,42265.0,0.00051508]
[1644773729738,0.19151823,42269.0,42265.0,0.00015259]
[1644773729937,0.19151823,42269.0,42265.0,0.0003625]
[1644773730137,0.19151823,42269.0,42265.0,0.00051509]
[1644773730339,0.25069123,42269.0,42265.0,0.0003625]
[1644773730741,0.00010254,42267.0,42265.0,0.0003625]
[1644773730939,0.00010254,42267.0,42264.0,0.00015259]
[1644773731139,0.00010254,42267.0,42265.0,0.0003625]
[1644773732139,0.00010254,42267.0,42265.0,0.00015259]
[1644773732439,0.00010254,42267.0,42264.0,0.00051802]
[1644773732640,0.05927454,42267.0,42264.0,0.00051802]
[1644773733295,0.05927454,42267.0,42264.0,0.00015259]
[1644773733493,0.05927454,42267.0,42263.0,0.24036543]
[1644773734494,0.05927454,42267.0,42263.0,0.24]
[1644773734696,0.05927454,42267.0,42263.0,0.24036544]
[1644773735398,0.22763554,42267.0,42263.0,0.24036544]
[1644773735598,0.059184,42265.0,42263.0,0.24036544]
[1644773735802,0.059184,42265.0,42263.0,0.24]
[1644773735997,0.059184,42265.0,42263.0,0.24036501]
[1644773736397,0.19878437,42264.0,42263.0,0.24036501]
[1644773736840,0.24878437,42264.0,42263.0,0.24]
[1644773739840,0.19878437,42264.0,42263.0,0.24]
[1644773740600,0.19874775,42264.0,42263.0,0.24]
[1644773741201,0.19874775,42264.0,42263.0,0.24156477]
[1644773741700,0.53180075,42264.0,42263.0,0.24156477]
[1644773741900,0.29874775,42264.0,42263.0,0.24156477]
[1644773742201,0.43315504,42264.0,42263.0,0.24156477]
[1644773742600,0.10010204,42264.0,42263.0,0.24156477]
[1644773742799,0.43315504,42264.0,42263.0,0.24156477]
[1644773742999,0.33315504,42264.0,42263.0,0.24156477]
[1644773743199,0.10010204,42264.0,42263.0,0.24156477]
[1644773743399,0.43315504,42264.0,42263.0,0.24156477]
[1644773745241,0.10010204,42264.0,42263.0,0.24156477]
[1644773745441,0.33315504,42264.0,42263.0,0.24156477]
[1644773745641,0.00010204,42264.0,42263.0,0.24156477]
[1644773745843,0.10010204,42264.0,42263.0,0.24156477]
[1644773746246,0.43315504,42264.0,42263.0,0.24156477]
[1644773746443,0.10010204,42264.0,42263.0,0.24156477]
[1644773746942,0.00010204,42264.0,42263.0,0.24156477]
[1644773748495,0.33315504,42264.0,42263.0,0.24156477]
[1644773748698,0.00010204,42264.0,42263.0,0.24156477]
[1644773748898,0.33315504,42264.0,42263.0,0.24156477]
[1644773749097,0.00010204,42264.0,42263.0,0.24156477]
[1644773749298,0.43315504,42264.0,42263.0,0.24156477]
[1644773749497,0.10010204,42264.0,42263.0,0.24156477]
[1644773749897,0.43315504,42264.0,42263.0,0.24156477]
[1644773750099,0.10010204,42264.0,42263.0,0.24156477]
[1644773750398,0.00010204,42264.0,42263.0,0.24156477]
[1644773750599,0.33315504,42264.0,42263.0,0.24156477]
[1644773750799,0.43315504,42264.0,42263.0,0.24156477]
[1644773753551,0.10010204,42264.0,42263.0,0.24156477]
[1644773753750,0.43315504,42264.0,42263.0,0.24156477]
[1644773753953,0.00010204,42264.0,42263.0,0.24156477]
[1644773754149,0.43315504,42264.0,42263.0,0.24156477]
[1644773754350,0.10010204,42264.0,42263.0,0.24156477]
[1644773754552,0.43315504,42264.0,42263.0,0.24156477]
[1644773754752,0.10010204,42264.0,42263.0,0.24156477]
[1644773754952,0.43315504,42264.0,42263.0,0.24156477]
[1644773755590,0.10010204,42264.0,42263.0,0.24156477]
[1644773755794,0.118361,42265.0,42264.0,0.20020408]
[1644773756092,0.118361,42265.0,42264.0,0.20035667]
[1644773756093,0.451414,42265.0,42264.0,0.20035667]
[1644773757392,0.551414,42265.0,42264.0,0.20035667]
[1644773760444,0.55152623,42265.0,42264.0,0.20035667]
[1644773761243,0.55152623,42265.0,42264.0,0.19535667]
[1644773762056,0.118379,42263.0,42256.0,0.00146048]
[1644773762251,0.118379,42263.0,42252.0,0.03]
[1644773762252,0.730353,42262.0,42252.0,0.03]
[1644773762547,0.333053,42261.0,42256.0,0.00146048]
[1644773762799,0.0473,42260.0,42256.0,0.00161329]
[1644773762997,0.75873997,42259.0,42256.0,0.00161329]
[1644773763199,0.46645271,42258.0,42256.0,0.00161329]
[1644773763499,0.78681693,42258.0,42256.0,0.00015281]
[1644773763698,0.62565671,42258.0,42253.0,0.00015281]
[1644773763896,0.78681693,42258.0,42253.0,0.00015281]
[1644773764404,0.392258,42256.0,42253.0,0.00015281]
[1644773764599,0.8142012,42256.0,42255.0,0.015]
[1644773764799,1.12536142,42256.0,42255.0,0.015]
[1644773765001,1.12536142,42256.0,42255.0,0.01515281]
[1644773766003,1.12536142,42256.0,42255.0,0.015]
[1644773767243,1.0,42255.0,42253.0,0.00047789]
[1644773767446,0.72450049,42254.0,42253.0,0.00032508]
[1644773767643,0.98566071,42254.0,42253.0,0.00047789]
[1644773767844,1.08566071,42254.0,42253.0,0.00047789]
[1644773768144,1.08566071,42254.0,42253.0,0.00015281]
[1644773768342,0.39226,42253.0,42252.0,0.03015281]
[1644773768542,0.76009772,42253.0,42252.0,0.03015281]
[1644773768745,1.07125794,42253.0,42252.0,0.03015281]
[1644773770149,1.07125794,42253.0,42251.0,0.01006]
[1644773770150,1.5316237,42252.0,42251.0,0.01006]
[1644773770397,2.10417798,42252.0,42251.0,0.01006]
[1644773770594,2.20407798,42252.0,42251.0,0.01006]
[1644773770795,2.25407798,42252.0,42251.0,0.01006]
[1644773771196,2.25407798,42252.0,42251.0,6e-05]
[1644773771197,2.30407798,42252.0,42251.0,6e-05]
[1644773771597,0.059216,42249.0,42243.0,0.00130948]
[1644773771797,0.67390114,42248.0,42233.0,0.065]
[1644773771996,0.333053,42246.0,42233.0,0.065]
[1644773772201,0.39084814,42248.0,42233.0,0.065]
[1644773772202,1.16181545,42242.0,42233.0,0.065]
[1644773772397,1.16181545,42242.0,42233.0,0.015]
[1644773772398,0.32979855,42241.0,42233.0,0.015]